[Event "New York Spring GM-A 2022"]
[Site "New York"]
[Date "2022.04.17"]
[Round "5.3"]
[White "Wang, Kevin"]
[Black "Barbosa, Oliver"]
[Result "0-1"]
[ECO "D20"]
[WhiteElo "2389"]
[BlackElo "2505"]
[Annotator "TA"]
[PlyCount "80"]
[EventDate "2022.04.14"]
[EventType "tourn"]
[EventCountry "USA"]
[SourceTitle "playchess.com"]
[Source "ChessBase"]
[SourceQuality "1"]
[TimeControl "5400+30"]

{[%evp 20,80,30,23,31,22,44,41,48,46,48,61,57,32,32,19,25,-41,-39,-62,-45,-79,-59,-74,-76,-86,-91,-121,-101,-96,-92,-106,-107,-103,-89,-111,-120,-118,-118,-114,-82,-133,-127,-129,-124,-139,-132,-132,-137,-139,-139,-132,-139,-131,-134,-152,-153,-145,-141,-297,-273,-252,-235]} 1. d4 {[%emt 0:00:02]} d5 {[%emt 0:05:52]} 2. c4 {[%emt 0:00:15]} dxc4 {[%emt 0:00:17]} 3. e4 {[%emt 0:04:43][%cal Be2e4,Be4e5][%mdl 32]} Nf6 {[%emt 0:00:22]} 4. e5 {[%emt 0:00:26]} Nd5 {[%emt 0:00:07]} 5. Bxc4 {[%emt 0:00:30]} Nb6 {[%emt 0:00:07]} 6. Bb3 {[%emt 0:00:30]} Nc6 {[%emt 0:00:51]} 7. Ne2 {[%emt 0:00:37]} Bf5 {[%emt 0:02:04]} 8. Nbc3 {[%emt 0:00:54]} e6 {[%emt 0:00:27]} 9. O-O {[%emt 0:01:10]} Be7 {[%emt 0:00:37]} 10. Be3 {[%emt 0:00:56] 10.a3 is vanishing.} O-O {[%emt 0:00:39]} 11. a3 {[%emt 0:01:05]} Qd7 {[%emt 0:00:42] D20: Queen's Gambit Accepted: 3 e3 and 3 e4.} 12. Bc2 {[%emt 0:02:22]} Bg6 {[%emt 0:37:24]} 13. Bxg6 {[%emt 0:06:57]} hxg6 {[%emt 0:00:41] White is slightly better.} 14. Qc2 {[%emt 0:01:47] [#]} Bd8 $146 {[%emt 0:01:49]} ({Predecessor:} 14... Nc4 15. Ne4 Nxe3 16. fxe3 Rac8 17. Rad1 Nb8 18. N2c3 c6 19. Rf3 Qe8 20. g4 c5 {½-½ (92) Collins,S (2443)-Ventura Bolet,M (2228) Barcelona 2017}) 15. Ne4 {[%emt 0:06:52]} Ne7 {[%emt 0:00:32]} 16. Nc5 {[%emt 0:12:44]} Qc6 {[%emt 0:00:20]} 17. Rac1 {[%emt 0:01:31]} Nd7 {[%emt 0:09:04]} 18. Bg5 {[%emt 0:21:06]} (18. Qb3 $11) 18... Nxc5 $1 $15 {[%emt 0:01:10]} 19. dxc5 {[%emt 0:00:16]} Nf5 {[%emt 0:00:37] Inhibits Nd4.} 20. Bxd8 {[%emt 0:00:39]} Raxd8 {[%emt 0:02:04]} 21. Rfd1 {[%emt 0:01:11]} Rd5 {[%emt 0:06:30]} (21... g5 {is more complex.} 22. Ng3 Nh4 23. Ne4 Rd5) 22. Rxd5 {[%emt 0:01:56]} Qxd5 {[%emt 0:00:12]} 23. Qc3 {[%emt 0:02:14]} Rd8 {[%emt 0:00:28]} 24. Re1 {[%emt 0:01:18]} Qd2 {[%emt 0:01:27]} 25. b4 {[%emt 0:01:13]} a6 {[%emt 0:03:28]} 26. Kf1 {[%emt 0:05:46]} Qa2 {[%emt 0:03:16] 0x0.001c68f4b5b3dp-1022s more active pieces.} 27. Ra1 {[%emt 0:02:26]} Qd5 {[%emt 0:00:06]} 28. Re1 {[%emt 0:01:04]} g5 {[%emt 0:00:06]} 29. h3 {[%emt 0:05:56]} Nh4 {[%emt 0:01:17][%csl Gh4][%cal Rd5g2,Bf5h4,Bh4g6,Bg6f4,Bf4d3,Bd3e5,Be5d7,Bd7e5,Be5c6,Bc6d8][%mdl 32] [#]} 30. f3 {[%emt 0:02:58]} ({White should play} 30. Qg3) 30... Ng6 {[%emt 0:01:56]} 31. Ng3 {[%emt 0:00:54]} Nf4 {[%emt 0:00:26] Threatens to win with ...Qa2.} 32. Ne2 {[%emt 0:00:27][%cal Bg3e2,Be2c3,Bc3e4,Be4c5][%mdl 32]} Qd3 {[%emt 0:15:27]} 33. Qxd3 {[%emt 0:01:02]} Nxd3 $17 {[%emt 0:00:18][%mdl 4096] Endgame KRN-KRN} 34. Rd1 {[%emt 0:00:03] [#]} Rd7 $1 {[%emt 0:00:04][%cal Od3c5]} 35. Nc3 {[%emt 0:01:51]} Nxe5 {[%emt 0:00:33]} 36. Rxd7 {[%emt 0:00:02]} Nxd7 {[%emt 0:00:06]} 37. Ne4 {[%emt 0:00:09]} f6 {[%emt 0:00:05]} 38. Ke2 {[%emt 0:00:05]} Ne5 {[%emt 0:00:08]} 39. c6 $2 {[%emt 0:03:01]} (39. Nc3 $17 {was worth a try.}) 39... Nxc6 {[%emt 0:00:15]} 40. Nc5 {[%emt 0:00:13]} Nd8 {[%emt 0:00:18] Weighted Error Value: White=0.18 (very precise) /Black=0.05 (flawless)} 0-1

[Event "New York Spring GM-A 2022"]
[Site "New York"]
[Date "2022.04.17"]
[Round "5.4"]
[White "Nagy, Gabor"]
[Black "Kaliksteyn, Alexander"]
[Result "1/2-1/2"]
[ECO "A13"]
[WhiteElo "2530"]
[BlackElo "2379"]
[Annotator "TA"]
[PlyCount "77"]
[EventDate "2022.04.14"]
[EventType "tourn"]
[EventCountry "USA"]
[SourceTitle "playchess.com"]
[Source "ChessBase"]
[SourceQuality "1"]
[TimeControl "5400+30"]

{[%evp 15,77,8,0,0,3,7,16,4,12,0,17,15,21,0,42,30,33,-18,0,-17,2,9,6,-7,-13,-2,-10,-35,-24,-18,-26,-29,-20,-28,0,0,0,0,9,0,0,0,0,0,0,0,0,0,0,0,0,0,0,0,0,0,0,0,0,0,0,0,0,0]} 1. c4 {[%emt 0:00:09]} e6 {[%emt 0:01:48]} 2. Nf3 {[%emt 0:00:35]} d5 {[%emt 0:00:17]} 3. g3 {[%emt 0:00:29]} dxc4 {[%emt 0:01:09]} 4. Qa4+ {[%emt 0:00:52]} Nd7 {[%emt 0:01:09]} 5. Bg2 {[%emt 0:00:44]} c5 {[%emt 0:17:41]} 6. O-O {[%emt 0:01:52]} Ngf6 {[%emt 0:01:03]} 7. Qxc4 {[%emt 0:01:03]} b6 {[%emt 0:00:31]} 8. Nc3 {[%emt 0:06:21]} Bb7 {[%emt 0:00:25]} 9. Rd1 {[%emt 0:02:38] A13: English Opening: 1...e6.} Rc8 {[%emt 0:06:15]} 10. d4 {[%emt 0:03:19]} a6 {[%emt 0:15:29]} 11. dxc5 {[%emt 0:00:27]} Bxc5 {[%emt 0:00:25]} 12. Qh4 {[%emt 0:00:49]} b5 {[%emt 0:04:40] [#]} 13. Ne5 $1 {[%emt 0:03:46]} Bxg2 {[%emt 0:18:46]} 14. Kxg2 {[%emt 0:00:35] Really sharp!} Qe7 {[%emt 0:01:48]} 15. Nxd7 {[%emt 0:04:05]} Nxd7 {[%emt 0:00:06] [#]} 16. Bg5 $146 {[%emt 0:10:13]} ({White should try} 16. Ne4 $14) ({Predecessor:} 16. Qxe7+ Kxe7 17. Ne4 Nf6 18. Nxc5 Rxc5 19. Bd2 Rd5 20. Rac1 Kd7 21. Ba5 Ra8 22. Rc7+ {1-0 (41) Novik,M (2466)-Olenin,N (2409) Sochi 2007}) 16... f6 $11 {[%emt 0:01:53][%cal Bf7f6,Bf6f5][%mdl 32]} 17. Bd2 {[%emt 0:00:39]} O-O {[%emt 0:02:37]} 18. Ne4 {[%emt 0:00:23]} Ne5 {[%emt 0:03:55]} 19. Rac1 {[%emt 0:02:15]} Qb7 {[%emt 0:08:10] aiming for ...Ng6.} 20. f3 {[%emt 0:00:29]} Be7 {[%emt 0:00:17] White must now prevent ...f5.} 21. Qh3 {[%emt 0:03:38]} f5 {[%emt 0:05:06]} (21... Rc6 $5 {[%cal Rf6f5]}) 22. Ng5 {[%emt 0:00:40]} Bxg5 {[%emt 0:00:24]} 23. Bxg5 {[%emt 0:00:04]} Rxc1 {[%emt 0:01:24]} 24. Bxc1 {[%emt 0:00:07]} Rc8 {[%emt 0:05:30]} 25. Qh4 {[%emt 0:01:16] The position is equal.} Rc2 {[%emt 0:00:52][%csl LRe2,LRf3]} 26. Kf1 {[%emt 0:01:39]} Qc6 {[%emt 0:00:55]} 27. Bf4 {[%emt 0:03:27] White threatens Rd8+ and mate.} Qc4 $1 {[%emt 0:00:20]} 28. Qd8+ {[%emt 0:00:59]} Kf7 {[%emt 0:00:01]} 29. Rd2 {[%emt 0:02:52]} Rxd2 {[%emt 0:00:19]} 30. Qxd2 {[%emt 0:00:15]} Nxf3 {[%emt 0:00:32]} 31. Qd7+ {[%emt 0:00:07]} Kf6 {[%emt 0:00:35]} 32. Qd8+ {[%emt 0:00:29]} Kf7 {[%emt 0:00:02]} 33. Qd7+ {[%emt 0:00:54]} Kf6 {[%emt 0:00:02]} 34. h4 {[%emt 0:04:18]} h6 {[%emt 0:00:01]} 35. h5 {[%emt 0:00:59] And now Qe8 would win.} Nd4 {[%emt 0:01:05]} 36. Qd8+ {[%emt 0:01:29]} Kf7 {[%emt 0:00:05]} 37. Qd7+ {[%emt 0:00:04]} Kf6 {[%emt 0:00:08]} 38. Qd8+ {[%emt 0:00:06]} Kf7 {[%emt 0:00:05]} 39. Qd7+ {[%emt 0:00:04] Weighted Error Value: White=0.07 (flawless) /Black=0.06 (flawless)} 1/2-1/2

[Event "New York Spring GM-A 2022"]
[Site "New York"]
[Date "2022.04.17"]
[Round "5.5"]
[White "Liang, Jason"]
[Black "Guo, Arthur"]
[Result "1/2-1/2"]
[ECO "C54"]
[WhiteElo "2419"]
[BlackElo "2412"]
[Annotator "TA"]
[PlyCount "124"]
[EventDate "2022.04.14"]
[EventType "tourn"]
[EventCountry "USA"]
[SourceTitle "playchess.com"]
[Source "ChessBase"]
[SourceQuality "1"]
[TimeControl "5400+30"]

{[%evp 17,124,0,0,0,0,0,3,0,0,0,0,0,0,7,14,0,0,0,0,0,0,2,28,32,32,21,21,21,16,16,16,15,16,16,36,16,18,17,17,16,29,19,18,0,35,18,24,12,11,0,26,26,26,18,28,29,31,0,0,0,0,0,21,16,59,66,64,62,48,51,34,0,72,71,67,69,70,70,84,20,20,0,0,0,0,0,0,0,0,0,0,0,0,0,0,0,0,0,0,0,0,0,0,0,0,0,0,0,0]} 1. e4 {[%emt 0:00:02]} e5 {[%emt 0:00:09]} 2. Nf3 {[%emt 0:00:09]} Nc6 {[%emt 0:00:05]} 3. Bc4 {[%emt 0:00:08]} Bc5 {[%emt 0:00:07]} 4. c3 {[%emt 0:00:08]} Nf6 {[%emt 0:00:06]} 5. d4 {[%emt 0:00:08]} exd4 {[%emt 0:00:07]} 6. e5 {[%emt 0:00:07]} d5 {[%emt 0:00:09]} 7. Bb5 {[%emt 0:00:08]} Ne4 {[%emt 0:00:22]} 8. cxd4 {[%emt 0:00:08]} Bb6 {[%emt 0:00:07]} 9. Nc3 {[%emt 0:00:09]} O-O {[%emt 0:00:23]} 10. Be3 {[%emt 0:00:12] C54: Giuoco Piano: 4 c3 Nf6, main lines with 5 d4 and 5 d3.} Bg4 {[%emt 0:00:12]} 11. h3 {[%emt 0:00:11]} Bh5 {[%emt 0:00:06]} 12. Qc2 {[%emt 0:00:13]} Nxc3 {[%emt 0:01:00] is the new trend.} 13. bxc3 {[%emt 0:00:09]} f6 $1 {[%emt 0:00:05]} 14. exf6 {[%emt 0:00:11]} Qxf6 {[%emt 0:00:07]} 15. Be2 {[%emt 0:00:10]} Na5 {[%emt 0:00:41]} 16. O-O {[%emt 0:00:36]} Bxf3 {[%emt 0:00:17]} 17. Bxf3 {[%emt 0:00:08]} c6 {[%emt 0:00:03]} 18. Rae1 {[%emt 0:00:18]} Nc4 {[%emt 0:00:06]} 19. Bc1 {[%emt 0:00:07]} Qg6 {[%emt 0:03:18]} 20. Qxg6 {[%emt 0:00:38]} hxg6 {[%emt 0:00:03]} 21. Re7 {[%emt 0:00:08]} Rf7 {[%emt 0:01:50]} 22. Re2 {[%emt 0:00:09]} Ba5 {[%emt 0:03:28]} 23. Rc2 {[%emt 0:00:11]} Re8 {[%emt 0:02:14]} 24. Bg4 {[%emt 0:05:23]} b5 {[%emt 0:06:20] [#]} 25. g3 $146 {[%emt 0:01:26]} ({Predecessor:} 25. h4 Rb7 26. g3 Kf7 27. Be2 Rbe7 28. Bg4 Bd8 29. Kg2 a5 30. Rd1 Rb7 31. Be2 {½-½ (62) Klimakovs,S (2445)-Panitevsky,I (2507) ICCF email 2018}) 25... Bb6 {[%emt 0:09:25]} 26. Rd1 {[%emt 0:01:51]} a5 {[%emt 0:06:00]} 27. Kg2 {[%emt 0:04:26]} Rb7 {[%emt 0:17:08]} 28. Be2 {[%emt 0:12:16][%cal Oa2a4]} Rbe7 {[%emt 0:01:29]} 29. Bd3 {[%emt 0:09:56]} Kf7 $1 {[%emt 0:00:05]} 30. h4 {[%emt 0:01:58]} Bd8 {[%emt 0:04:04]} 31. Kf1 {[%emt 0:03:29]} Rb7 {[%emt 0:03:23]} 32. Be2 {[%emt 0:01:46]} Bf6 {[%emt 0:00:29]} 33. Rd3 {[%emt 0:03:26][%cal Bd1d3,Bd3f3,Bf3f4][%mdl 32]} Nd6 {[%emt 0:07:59]} 34. Rf3 {[%emt 0:05:50]} Kg8 {[%emt 0:04:10]} 35. Bd3 {[%emt 0:02:11]} Ne4 {[%emt 0:00:59]} 36. Kg2 {[%emt 0:01:51]} Rbe7 {[%emt 0:04:12]} 37. Rf4 {[%emt 0:10:33]} g5 {[%emt 0:01:53]} 38. Rg4 {[%emt 0:01:16][%cal Rh4g5]} gxh4 {[%emt 0:00:15]} 39. gxh4 {[%emt 0:00:08]} Re6 {[%emt 0:01:19]} 40. h5 {[%emt 0:01:49]} b4 {[%emt 0:04:31]} 41. cxb4 {[%emt 0:05:42]} axb4 {[%emt 0:00:24]} 42. h6 $1 {[%emt 0:02:40]} Ra8 {[%emt 0:05:03]} 43. hxg7 {[%emt 0:04:50]} Bxg7 {[%emt 0:00:48]} 44. Re2 {[%emt 0:01:06]} Rae8 {[%emt 0:02:31] [#]} (44... Kf7 $11 {remains equal.}) 45. Rb2 $1 $16 {[%emt 0:00:36]} Rb8 {[%emt 0:03:35]} 46. Bf4 {[%emt 0:01:02]} Rb7 {[%emt 0:00:10]} 47. Be5 {[%emt 0:00:44] A strong pair of Bishops.} c5 $1 {[%emt 0:02:41]} 48. Bxe4 {[%emt 0:07:02]} ({White should try} 48. Rc2 $16) 48... dxe4 $11 {[%emt 0:00:08] The position is equal.} 49. Bxg7 {[%emt 0:00:22]} (49. Rc2 {is more complex.} cxd4 50. Bxd4 Kh7 51. Be3) 49... Rxg7 {[%emt 0:00:09]} 50. Rxg7+ {[%emt 0:00:05]} Kxg7 {[%emt 0:00:03]} 51. dxc5 $16 {[%emt 0:00:08][%mdl 4096] Endgame Threatens to win with Kf1. KR-KR} e3 {[%emt 0:02:17] [#] ( -> ...e2)} 52. fxe3 {[%emt 0:00:23]} (52. Rxb4 e2 53. Rb1 e1=Q 54. Rxe1 Rxe1 $19) 52... Rxe3 {[%emt 0:00:03]} 53. Rxb4 {[%emt 0:00:31]} Ra3 {[%emt 0:01:35]} 54. Rc4 {[%emt 0:17:08]} Kf6 {[%emt 0:01:18]} 55. c6 {[%emt 0:00:58] White threatens c7 and mate.} Rxa2+ {[%emt 0:00:04]} 56. Kf3 {[%emt 0:00:08] Intending c7 and mate.} Ra8 $1 {[%emt 0:00:04]} 57. Rh4 {[%emt 0:00:58]} Ra3+ {[%emt 0:00:37]} 58. Ke2 {[%emt 0:00:20]} Ke7 {[%emt 0:00:37]} 59. Rh6 {[%emt 0:00:28]} Kd8 {[%emt 0:00:17]} 60. Rh7 {[%emt 0:00:29]} Rc3 {[%emt 0:00:08]} 61. c7+ {[%emt 0:00:26]} Rxc7 {[%emt 0:00:03]} 62. Rxc7 {[%emt 0:00:04]} Kxc7 {[%emt 0:00:34] Weighted Error Value: White=0.06 (flawless) /Black=0.07 (flawless)} 1/2-1/2

[Event "New York Spring GM-A 2022"]
[Site "New York"]
[Date "2022.04.17"]
[Round "6.1"]
[White "Belous, Vladimir"]
[Black "Guo, Arthur"]
[Result "1/2-1/2"]
[ECO "D36"]
[WhiteElo "2516"]
[BlackElo "2412"]
[Annotator "TA"]
[PlyCount "86"]
[EventDate "2022.04.14"]
[EventType "tourn"]
[EventCountry "USA"]
[SourceTitle "playchess.com"]
[Source "ChessBase"]
[SourceQuality "1"]
[TimeControl "5400+30"]

{[%evp 17,86,22,19,12,31,30,26,0,4,0,0,0,0,0,19,26,21,12,12,0,0,0,0,0,0,-11,-8,-8,-8,-8,-9,-9,-5,-8,-24,-11,0,0,0,0,0,-16,-15,-15,-8,-8,-10,-25,-29,-25,-26,-62,-8,-5,-10,-17,-17,-20,0,-8,0,0,0,-20,0,0,0,0,0,0,0]} 1. d4 {[%emt 0:02:49]} Nf6 {[%emt 0:00:12]} 2. c4 {[%emt 0:00:07]} e6 {[%emt 0:00:06]} 3. Nc3 {[%emt 0:00:14]} d5 {[%emt 0:00:16]} 4. cxd5 {[%emt 0:00:12]} exd5 {[%emt 0:00:06]} 5. Bg5 {[%emt 0:00:05]} c6 {[%emt 0:00:42]} 6. e3 {[%emt 0:00:30]} h6 {[%emt 0:00:16]} 7. Bh4 {[%emt 0:00:16]} Be7 {[%emt 0:00:17]} 8. Bd3 {[%emt 0:00:07]} O-O {[%emt 0:00:09]} 9. Qc2 {[%emt 0:03:05]} a5 {[%emt 0:00:18]} 10. Nge2 $1 {[%emt 0:00:47] The main line 10.Nge2 scores better than 10.Nf3. D36: Queen's Gambit Declined: Exchange Variation: Main line (5 Bg5 c6 6 Qc2).} Na6 {[%emt 0:00:26][%cal Bb8a6,Ba6c7,Bc7e6][%mdl 32]} 11. a3 {[%emt 0:00:12] Prevents Nb4.} Nc7 {[%emt 0:00:21]} 12. f3 {[%emt 0:01:00] White has an edge.} Re8 {[%emt 0:03:05] [#]} 13. Bf2 $146 {[%emt 0:05:30]} ({Predecessor:} 13. O-O Ne6 14. Rad1 Qb6 15. Bf2 Bd7 16. h3 Rac8 17. e4 Nf8 18. e5 N6h7 19. f4 {0-1 (75) Pantzar,M (2081)-Madebrink,L (2236) Tylosand 2015}) 13... c5 {[%emt 0:12:01]} 14. dxc5 {[%emt 0:07:06]} Bxc5 {[%emt 0:01:00]} 15. Nb5 {[%emt 0:00:42]} Ne6 {[%emt 0:01:09]} 16. O-O {[%emt 0:02:47]} Qb6 {[%emt 0:02:39]} 17. Ned4 {[%emt 0:01:44]} Bd7 {[%emt 0:05:55]} 18. Qd2 {[%emt 0:00:48]} Bxd4 {[%emt 0:08:29]} 19. Nxd4 {[%emt 0:06:36]} Nxd4 {[%emt 0:00:13]} 20. exd4 {[%emt 0:00:03]} Bb5 {[%emt 0:00:15]} 21. Rfc1 {[%emt 0:08:23]} Bxd3 {[%emt 0:06:28]} 22. Qxd3 {[%emt 0:00:03]} Qxb2 {[%emt 0:06:06]} 23. Rcb1 {[%emt 0:00:10]} Qe2 {[%emt 0:00:11]} 24. Qxe2 {[%emt 0:00:03]} Rxe2 {[%emt 0:00:03]} 25. Rxb7 {[%emt 0:00:04]} Rc8 {[%emt 0:16:28]} 26. Ra7 $1 {[%emt 0:01:26]} Rcc2 {[%emt 0:00:38]} 27. Rf1 {[%emt 0:00:06]} g5 {[%emt 0:09:13]} 28. g4 {[%emt 0:05:51] Inhibits Nh5.} h5 $36 {[%emt 0:06:03][%mdl 2048] Black is pushing.} 29. h3 {[%emt 0:01:36]} h4 {[%emt 0:01:24]} 30. Rxa5 {[%emt 0:00:20]} Ra2 {[%emt 0:01:23]} 31. a4 {[%emt 0:02:02]} Kg7 {[%emt 0:01:38]} 32. Rc5 {[%emt 0:03:51]} Rxa4 {[%emt 0:02:07]} 33. Re1 {[%emt 0:00:19]} Rb2 {[%emt 0:03:56]} 34. Be3 {[%emt 0:12:31]} Raa2 {[%emt 0:02:47]} (34... Kg6 $15 35. Bc1 Rba2) 35. Bxg5 $11 {[%emt 0:36:35] The position is equal.} Rg2+ {[%emt 0:00:05]} 36. Kh1 {[%emt 0:00:00]} Rh2+ {[%emt 0:07:13][%mdl 1024] Black has compensation.} 37. Kg1 {[%emt 0:00:00]} Rag2+ {[%emt 0:03:42]} 38. Kf1 {[%emt 0:00:00]} Rf2+ {[%emt 0:00:16]} 39. Kg1 {[%emt 0:00:00]} Rfg2+ {[%emt 0:00:54]} 40. Kf1 {[%emt 0:00:00]} Nh5 {[%emt 0:00:21]} 41. gxh5 {[%emt 0:00:00] [#] Black must now prevent Be3. Active counter play!} (41. Bxh4 $2 {gets mated.} Nf4) 41... Rf2+ {[%emt 0:00:12]} 42. Kg1 {[%emt 0:00:00]} Rfg2+ {[%emt 0:00:05]} 43. Kf1 {[%emt 0:00:00] And now Be3 would win.} Rf2+ {[%emt 0:01:23] Weighted Error Value: White=0.04 (flawless) /Black=0.06 (flawless)} 1/2-1/2

[Event "New York Spring GM-A 2022"]
[Site "New York"]
[Date "2022.04.17"]
[Round "6.2"]
[White "Kaliksteyn, Alexander"]
[Black "Liang, Jason"]
[Result "0-1"]
[ECO "D02"]
[WhiteElo "2379"]
[BlackElo "2419"]
[Annotator "TA"]
[PlyCount "70"]
[EventDate "2022.04.14"]
[EventType "tourn"]
[EventCountry "USA"]
[SourceTitle "playchess.com"]
[Source "ChessBase"]
[SourceQuality "1"]
[TimeControl "5400+30"]

{[%evp 11,70,1,0,0,2,0,5,17,0,-5,0,0,0,0,0,0,0,0,0,0,0,-14,-6,0,0,0,0,7,0,0,0,0,8,10,8,-9,-18,-20,-10,-15,0,-22,-29,-26,-26,-27,-12,-148,-142,-142,-146,-146,-119,-101,-102,-245,-229,-288,-273,-467,-402]} 1. d4 {[%emt 0:00:05]} d5 {[%emt 0:00:07]} 2. Nf3 {[%emt 0:00:09]} Nf6 {[%emt 0:00:19]} 3. c3 {[%emt 0:00:06]} e6 {[%emt 0:00:26]} 4. Bf4 {[%emt 0:00:09]} c5 {[%emt 0:00:12]} 5. e3 {[%emt 0:00:07]} Nc6 {[%emt 0:00:28]} 6. Nbd2 {[%emt 0:00:08]} Nh5 {[%emt 0:00:24][%cal Bf6h5,Bh5g7,Bg7f5][%mdl 32]} 7. Bg5 {[%emt 0:00:15] D02: 1 d4 d5 2 Nf3 sidelines, including 2...Nf6 3 g3 and 2...Nf6 3 Bf4.} f6 {[%emt 0:00:08]} 8. Bh4 {[%emt 0:00:02][%cal Of3e5]} (8. Ne5 {is interesting.} g6 9. Bh4 Be7 10. Nxc6 bxc6 11. Nb3) 8... g6 {[%emt 0:00:12]} 9. Be2 {[%emt 0:01:01][%cal Of3e5] The position is equal.} Ng7 {[%emt 0:06:20] 9...cxd4 is the fancy move.} 10. O-O {[%emt 0:08:04]} Nf5 {[%emt 0:00:36]} 11. Bg3 {[%emt 0:03:00] [#]} cxd4 $146 {[%emt 0:07:30]} ({Predecessor:} 11... h5 12. h4 Nxg3 13. fxg3 Bd6 14. Bd3 f5 15. c4 Bxg3 16. cxd5 Qxd5 17. Bc4 Qd6 {0-1 (31) Aronian,L (2781)-Erigaisi,A (2567) Chess.com INT 2021}) 12. Nxd4 {[%emt 0:07:05]} Nxg3 {[%emt 0:02:34]} 13. hxg3 {[%emt 0:01:11]} (13. fxg3 Bh6 14. Nc2 Qb6 $17) 13... e5 {[%emt 0:01:30]} 14. Nxc6 {[%emt 0:00:54]} bxc6 {[%emt 0:00:06]} 15. c4 {[%emt 0:00:25]} Rb8 {[%emt 0:01:30]} 16. Nb3 {[%emt 0:29:30]} Be6 {[%emt 0:04:05]} 17. Rc1 {[%emt 0:02:21]} Qb6 {[%emt 0:16:00]} 18. Bg4 {[%emt 0:14:04]} f5 {[%emt 0:04:50]} 19. Bf3 {[%emt 0:00:14][%cal Rc4d5]} e4 {[%emt 0:02:29]} 20. Be2 {[%emt 0:05:55]} Bg7 {[%emt 0:00:39]} 21. cxd5 {[%emt 0:03:23]} cxd5 {[%emt 0:01:48]} 22. Nc5 {[%emt 0:00:49] Qa4+ is the strong threat.} O-O {[%emt 0:04:02]} (22... Bxb2 23. Qa4+ Kf8 24. Nxe6+ Qxe6 25. Rc7 $16) 23. Nxe6 {[%emt 0:01:02]} Qxe6 {[%emt 0:00:08]} 24. b3 {[%emt 0:00:03]} Kh8 {[%emt 0:02:40]} 25. Rc7 {[%emt 0:03:29]} Rbd8 {[%emt 0:01:20]} 26. Qc2 {[%emt 0:01:44]} d4 {[%emt 0:01:51]} 27. exd4 {[%emt 0:00:15]} Bxd4 {[%emt 0:00:20]} 28. Rd1 {[%emt 0:03:11]} Qb6 {[%emt 0:04:14]} 29. Kf1 {[%emt 0:12:05] [#]} (29. Rc6 $1 $11 Qa5 30. Qc1) 29... f4 $1 $17 {[%emt 0:03:50] aiming for ...fxg3.} (29... Bxf2 30. Rc6 Rxd1+ 31. Bxd1 $18) 30. Rc6 {[%emt 0:00:31] [#]} (30. gxf4 $2 Rxf4 31. Rc4 (31. f3 $2 Rh4 $19) 31... Rxf2+ 32. Ke1 Rf6 33. Rdxd4 Rxd4 $19) 30... Qa5 {[%emt 0:00:39] White must now prevent ...fxg3.} (30... Qb4 31. Rc4 Qb6 32. gxf4 $16 (32. Qxe4 fxg3 33. Rcxd4 Rde8 $15)) 31. gxf4 {[%emt 0:02:35]} Rxf4 {[%emt 0:00:20]} 32. Rxd4 {[%emt 0:01:00]} Rxd4 {[%emt 0:00:22]} 33. Rc8+ {[%emt 0:01:24]} (33. Ra6 $17 {keeps fighting.} Rd2 34. Qc1) 33... Kg7 $19 {[%emt 0:00:20]} 34. b4 {[%emt 0:00:29]} Qe5 {[%emt 0:02:20]} ({Weaker is} 34... Rxb4 35. Qc3+ Kh6 36. Qh3+ Kg7 37. Qc3+ Kh6 38. Qh3+ Kg7 39. Qc3+ $11) (34... Qxb4 35. Qc7+ Rf7 36. Qe5+ Rf6 37. Rc7+ Kg8 38. Rc8+ (38. Bc4+ Rxc4 39. Qe8+ Qf8 $11) 38... Kg7 39. Rc7+ Kg8 40. Rc8+ (40. Bc4+ Rxc4 41. Qe8+ Qf8 $11) 40... Kg7 $11) 35. Qc6 $2 {[%emt 0:00:42]} (35. Rc5 Qf6 36. Qc3 Rxf2+ 37. Ke1) 35... e3 {[%emt 0:01:01] Weighted Error Value: White=0.20 (precise) /Black=0.02 (flawless)} 0-1

[Event "New York Spring GM-A 2022"]
[Site "New York"]
[Date "2022.04.17"]
[Round "6.3"]
[White "Barbosa, Oliver"]
[Black "Nagy, Gabor"]
[Result "1/2-1/2"]
[WhiteElo "2505"]
[BlackElo "2530"]
[Annotator "TA"]
[PlyCount "42"]
[EventDate "2022.04.14"]
[EventType "tourn"]
[EventCountry "USA"]
[SourceTitle "playchess.com"]
[Source "ChessBase"]
[SourceQuality "1"]
[TimeControl "5400+30"]

{[%evp 13,14,8,10]} 1. d4 {[%emt 0:00:03]} Nf6 {[%emt 0:00:06]} 2. Nf3 {[%emt 0:00:11]} d5 {[%emt 0:00:05]} 3. c4 {[%emt 0:00:04]} e6 {[%emt 0:00:06]} 4. Nc3 {[%emt 0:00:08]} Be7 {[%emt 0:00:06]} 5. Bg5 {[%emt 0:00:06]} h6 {[%emt 0:00:05]} 6. Bh4 {[%emt 0:00:05]} O-O {[%emt 0:00:05]} 7. e3 {[%emt 0:00:05]} b6 {[%emt 0:00:05] [#]} {Predecessor:} 8. cxd5 $146 {D59: Queen's Gambit Declined: Tartakower Defence: Main line (8 cxd5 Nxd5).} Nxd5 9. Bxe7 Qxe7 10. Nxd5 exd5 11. Rc1 Be6 12. Qb3 c5 13. Qa3 Rc8 14. Bb5 Kf8 15. dxc5 Rxc5 16. Rxc5 Qxc5 17. Kd2 Qxa3 18. bxa3 Nd7 19. Bxd7 Bxd7 20. Rc1 Ke7 21. Kd3 Kd6 {1-0 (40) Nakamura,H (2750)-So,W (2778) Chess.com INT 2022} 1/2-1/2

[Event "New York Spring GM-A 2022"]
[Site "New York"]
[Date "2022.04.17"]
[Round "6.4"]
[White "Korley, Kassa"]
[Black "Wang, Kevin"]
[Result "1-0"]
[ECO "D78"]
[WhiteElo "2399"]
[BlackElo "2389"]
[Annotator "TA"]
[PlyCount "29"]
[EventDate "2022.04.14"]
[EventType "tourn"]
[EventCountry "USA"]
[SourceTitle "playchess.com"]
[Source "ChessBase"]
[SourceQuality "1"]
[TimeControl "5400+30"]

{[%evp 11,29,22,23,-6,1,0,0,0,0,-3,8,0,12,6,18,0,27,28,369,366]} 1. Nf3 {[%emt 0:00:03]} d5 {[%emt 0:00:44]} 2. g3 {[%emt 0:00:05]} g6 {[%emt 0:02:06]} 3. Bg2 {[%emt 0:00:06]} Bg7 {[%emt 0:00:05]} 4. d4 {[%emt 0:00:03]} Nf6 {[%emt 0:02:38]} 5. O-O {[%emt 0:00:08]} O-O {[%emt 0:00:16]} 6. c4 {[%emt 0:00:05]} c6 {[%emt 0:00:22]} 7. a4 {[%emt 0:00:17] D78: Fianchetto Grünfeld: 6 0-0 c6.} a5 {[%emt 0:01:31]} 8. cxd5 {[%emt 0:00:34]} cxd5 {[%emt 0:05:31]} 9. Qb3 {[%emt 0:00:28] The position is equal.} Nc6 {[%emt 0:02:07] [#]} 10. Bf4 $146 {[%emt 0:00:33]} ({Predecessor:} 10. Nc3 Nb4 11. Na2 Nxa2 12. Qxa2 Qb6 13. Bf4 Bf5 14. Rfc1 Rac8 15. Qa3 e6 16. b3 {0-1 (42) Giri,A (2774)-Duda,J (2756) Chess.com INT 2021}) 10... Nb4 {[%emt 0:16:41]} 11. Na3 {[%emt 0:00:37]} Bf5 {[%emt 0:03:20]} 12. Rfc1 {[%emt 0:00:32]} Qb6 {[%emt 0:04:52]} 13. Bc7 {[%emt 0:33:56]} Qa6 {[%emt 0:02:21]} 14. Bf1 {[%emt 0:01:28][%cal Oe2e4] [#] And now e4! would win.} Rac8 $2 {[%emt 0:11:42][%mdl 8192]} (14... Qa7 $11) 15. e4 $1 {[%emt 0:02:20] Weighted Error Value: White=0.05 (flawless) /Black=0.78} 1-0